Cogmind - Beta 12 --- EXPLORER MODE // 2024.01.18 @ 19:18:04 Player: Lefty Result: Destroyed by Y-45 Defender with Beam Rifle Performance ------------- Evolutions (1) 500 Regions Visited (3) 600 Robots Destroyed (18) 90 Value Destroyed (499) 499 Prototype IDs (2) 40 Alien Tech Used (0) 0 Bonus (0) 0 TOTAL SCORE: 1729 Bonus ------- None Cogmind --------- Core Integrity 0/400 Matter 271/300 Energy 100/100 System Corruption 5% Temperature Cool (11) Movement Core (50) Location -9/Storage Parts ------- > --- POWER (1) -------- (None) > --- PROPULSION (5) --- (None) > --- UTILITY (2) ------ (None) > --- WEAPON (2) ------- (None) > --- INVENTORY (5) ---- Improved Medium Laser Peak State ------------ > --- POWER ------------ Light Ion Engine > --- PROPULSION ------- Aluminum Leg Aluminum Leg Improved Aluminum Leg > --- UTILITY ---------- Weapon Shielding Tractor Beam > --- WEAPON ----------- EM Pulse Gun EM Pulse Gun > --- INVENTORY -------- (None) [Rating: 9] Favorites ----------- Power Light Ion Engine Engine Light Ion Engine Propulsion Aluminum Leg Leg Aluminum Leg Flight Unit VTOL Module Utility Tractor Beam Device Tractor Beam Processor Improved Targeting Computer Protection Weapon Shielding Weapon EM Pulse Gun Energy Gun EM Pulse Gun Ballistic Gun Improved Assault Rifle Launcher Rocket Launcher Build | -11 -10 -9 -9 ------- Run | Jun Mat Mat Sto Slots Evolved 3 | . 1 2 . Power . | . . . . Propulsion 3 | . 1 2 . Utility . | . . . . Weapon . | . . . . Parts Attached 13 | 7 . 1 5 Power 1 | 1 . . . Engine 1 | 1 . . . Core . | . . . . Reactor . | . . . . Propulsion 4 | 2 . 1 1 Treads . | . . . . Leg 3 | 2 . 1 . Wheel . | . . . . Hover . | . . . . Flight 1 | . . . 1 Utility 3 | 2 . . 1 Device 1 | 1 . . . Storage . | . . . . Processor 1 | . . . 1 Hackware . | . . . . Protection 1 | 1 . . . Artifact . | . . . . Weapon 5 | 2 . . 3 Energy Gun 3 | 2 . . 1 Energy Cannon . | . . . . Ballistic Gun 1 | . . . 1 Ballistic Cannon . | . . . . Launcher 1 | . . . 1 Special Weapon . | . . . . Impact Weapon . | . . . . Slashing Weapon . | . . . . Piercing Weapon . | . . . . Special Melee Weapon . | . . . . Unidentified Prototypes 2 | . . . 2 Parts Lost 12 | . . 3 9 Power 1 | . . 1 . Propulsion 4 | . . . 4 Utility 2 | . . . 2 Weapon 5 | . . 2 3 Highest Loss Streak 6 | . . 3 6 To Critical Strikes . | . . . . Average Slot Usage (%) 66 | . 87 69 30 Engine 7 | . 12 8 . Leg 20 | . 25 23 9 Device 9 | . 12 10 5 Processor 1 | . . . 6 Protection 8 | . 12 10 1 Energy Gun 16 | . 25 17 1 Launcher 1 | . . . 3 Naked Turns 16 | . . . 16 Heaviest Build 9 | 9 9 9 6 Greatest Support 33 | 20 20 33 33 Greatest Overweight (x) 1 | . . . 1 Average Overweight (x) . | . . . . Largest Inventory Capacity 5 | 5 5 5 5 Average Capacity 5 | 5 5 5 5 Most Carried 3 | 3 . 1 1 Average Carried . | . . . . Final Capacity 5 | 5 5 5 5 Final Carried 1 | . . . 1 Class Distribution -------------------- 100% | Hacker-Mutant Dominant Class ---------------- Hacker-Mutant | -10/Materials Hacker-Mutant | -9/Materials Hacker-Mutant | -9/Storage Resources | -11 -10 -9 -9 ----------- Run | Jun Mat Mat Sto Matter Collected 387 | 259 11 . 117 Remotely 314 | 215 11 . 88 Salvage Created 582 | 89 . 12 481 Parts 37 | 8 . 4 25 Haulers Intercepted 1 | . . . 1 Recyclers Shooed . | . . . . Parts Field Recycled . | . . . . Retrieved Matter . | . . . . Parts Self-Destructed . | . . . . Prevented . | . . . . Kills | -11 -10 -9 -9 ------- Run | Jun Mat Mat Sto Combat Hostiles Destroyed 13 | . . . 13 Guns 8 | . . . 8 AOE 5 | . . . 5 Classes Destroyed 8 | 2 . 1 5 Worker 1 | . . . 1 Tunneler 1 | 1 . . . Hauler 1 | . . . 1 Recycler 1 | 1 . . . Watcher 1 | . . 1 . Swarmer 2 | . . . 2 Grunt 8 | . . . 8 Sentry 3 | . . . 3 Best Kill Streak 10 | 1 . 1 10 Combat Bots Only 8 | . . . 8 Max Kills in Single Turn 2 | 1 . 1 2 Gunslinging 1 | . . . 1 Exploded 1 | . . . 1 Melee . | . . . . Uniques/NPCs Destroyed . | . . . . Combat | -11 -10 -9 -9 -------- Run | Jun Mat Mat Sto Damage Taken 1218 | . 211 264 743 Core 438 | . 30 46 362 Absorbed by Shields . | . . . . Redirected to Shielding 27 | . 18 9 . Core Remaining (%) 94 | 100 88 . . Volleys Fired 34 | 2 4 6 22 Largest 2 | 2 2 2 2 Hottest 80 | 80 80 80 79 Shots Fired 50 | 3 8 8 31 Gun 41 | 3 8 8 22 Cannon . | . . . . Launcher 9 | . . . 9 Special . | . . . . Kinetic 13 | . . . 13 Thermal 9 | . . . 9 Explosive 9 | . . . 9 Electromagnetic 19 | 3 8 8 . Robot Hit Streak 26 | 2 . 4 26 Robot Miss Streak 1 | . . 1 1 Penetration Max . | . . . . Secondary Targets 2 | . . . 2 Max Gunslinging Chain 1 | . . . 1 Shots Hit Robots 37 | 2 . 6 29 Core Hits 28 | 2 . 1 25 Critical Kills . | . . . . Critical Parts Destroyed . | . . . . Critical Strikes 4 | . . 1 3 Burn 3 | . . . 3 Corrupt 1 | . . 1 . Melee Attacks . | . . . . Impact . | . . . . Slashing . | . . . . Piercing . | . . . . Sneak Attacks . | . . . . Combat Hostiles . | . . . . Follow-up Attacks . | . . . . Damage Inflicted 933 | 30 14 79 810 Guns 435 | 30 . 75 330 Cannons . | . . . . Explosions 437 | . . . 437 Melee . | . . . . Ramming 61 | . 14 4 43 Kinetic 196 | . . . 196 Thermal 134 | . . . 134 Explosive 437 | . . . 437 Electromagnetic 105 | 30 . 75 . Impact . | . . . . Slashing . | . . . . Piercing . | . . . . Highest Corruption 5 | . . . 5 Average Corruption 4 | . . . 4 Corruption Purged . | . . . . Corruption Blocked . | . . . . Effects 3 | . . . 3 Message Errors 2 | . . . 2 Matter Fused 1 | . . . 1 Overload Shots . | . . . . Overflow Damage 7 | . . . 7 Projectiles . | . . . . Explosions 7 | . . . 7 Melee . | . . . . Knockbacks 1 | . . . 1 Impact 1 | . . . 1 Kinetic . | . . . . Secondary . | . . . . Self-Inflicted Damage 20 | . . . 20 Shots . | . . . . Rammed 13 | . . . 13 Targets Rammed 19 | . 5 1 13 Kicked 6 | . 5 1 . Crushed . | . . . . Highest Temperature 82 | 18 54 44 82 Average Temperature 30 | 12 25 20 38 Received Heat Transfer 762 | . 87 189 486 Siege Activations . | . . . . Robots Corrupted . | . . . . Combat Hostiles . | . . . . Parts Fried . | . . . . Impact Corruptions . | . . . . Robots Melted . | . . . . Combat Hostiles . | . . . . Parts Melted 4 | . . . 4 Heat Transferred 518 | . . . 518 Parts Sabotaged . | . . . . Parts Stolen . | . . . . Parts Stripped . | . . . . Power Chain Reactions . | . . . . Missiles Intercepted . | . . . . Alert | -11 -10 -9 -9 ------- Run | Jun Mat Mat Sto Peak Influence 363 | 10 19 27 363 Initial 5 | . 4 5 . Average 41 | 4 4 9 153 Maximum Alert Level 1 | . . . 1 Low Security (%) 95 | 100 100 100 82 Level 1 4 | . . . 17 Level 2 . | . . . . Level 3 . | . . . . Level 4 . | . . . . Level 5 . | . . . . High Security . | . . . . Max Security . | . . . . Squads Dispatched 6 | . . 1 5 Investigation 1 | . . . 1 Extermination . | . . . . Reinforcement 2 | . . 1 1 Assault . | . . . . Garrison 3 | . . . 3 Intercept . | . . . . Searches Triggered . | . . . . Construction Impeded . | . . . . Haulers Reinforced . | . . . . Active Scanning Responses . | . . . . Cargo Convoy Interrupts . | . . . . Stealth | -11 -10 -9 -9 --------- Run | Jun Mat Mat Sto Distress Signals 2 | . . 1 1 Communications Jammed . | . . . . Distress Signals . | . . . . Times Spotted 33 | . 5 9 19 Peak Tracking Total 13 | . 4 7 13 Tactical Retreats 1 | . . 1 . Traps | -11 -10 -9 -9 ------- Run | Jun Mat Mat Sto Traps Triggered 1 | . . . 1 Indirectly . | . . . . Trap Hack Attempts . | . . . . Triggered . | . . . . Disarmed . | . . . . Reprogrammed . | . . . . Reused . | . . . . Traps Extracted . | . . . . Installed . | . . . . Triggered . | . . . . Machines | -11 -10 -9 -9 ---------- Run | Jun Mat Mat Sto Machines Disabled 4 | . . . 4 Max in Single Turn 2 | . . . 2 Machines Repaired . | . . . . Machines Sabotaged . | . . . . Overloaded Fab Kills . | . . . . Hacking | -11 -10 -9 -9 --------- Run | Jun Mat Mat Sto Machines Accessed 2 | . 1 . 1 Terminals 1 | . 1 . . Fabricators . | . . . . Repair Stations . | . . . . Recycling Units 1 | . . . 1 Scanalyzers . | . . . . Garrison Access . | . . . . Total Hacks 6 | . 1 . 5 Successful 5 | . 1 . 4 Failed 1 | . . . 1 Catastrophic . | . . . . Database Lockouts . | . . . . Manual . | . . . . Terminals 1 | . 1 . . Fabricators . | . . . . Repair Stations . | . . . . Recycling Units 5 | . . . 5 Scanalyzers . | . . . . Garrison Access . | . . . . Terminal Hacks 1 | . 1 . . Record 1 | . 1 . . Fabricator Hacks . | . . . . Repair Station Hacks . | . . . . Recycling Unit Hacks 4 | . . . 4 Retrieve Components 4 | . . . 4 Scanalyzer . | . . . . Garrison Access Hacks . | . . . . Unauthorized Hacks . | . . . . Terminals . | . . . . Fabricators . | . . . . Repair Stations . | . . . . Recycling Units . | . . . . Scanalyzers . | . . . . Garrison Access . | . . . . Data Cores Recovered . | . . . . Used . | . . . . Hacking Detections 1 | . . . 1 Full Trace Events 1 | . . . 1 Feedback Events . | . . . . Feedback Blocked . | . . . . Robot Schematics Acquired . | . . . . Robots Built . | . . . . Authchips . | . . . . Time . | . . . . Total Robot Build Rating . | . . . . Part Schematics Acquired . | . . . . Parts Built . | . . . . Authchips . | . . . . Time . | . . . . Total Part Build Rating . | . . . . Parts Repaired . | . . . . Time . | . . . . Parts Recycled . | . . . . Recycled Matter . | . . . . Retrieved Matter . | . . . . Retrieved Components 1 | . . . 1 Parts Scanalyzed . | . . . . Part Schematics Acquired . | . . . . Parts Damaged . | . . . . Bothacking | -11 -10 -9 -9 ------------ Run | Jun Mat Mat Sto Used RIF Installer . | . . . . Robots Hacked . | . . . . Non-combat . | . . . . Combat . | . . . . Robot Hacks Applied . | . . . . Relay Couplers Released . | . . . . Fabnet Peak Effective % . | . . . . Robots Rewired . | . . . . Allies Hacked . | . . . . Hacks Repelled . | . . . . Allies | -11 -10 -9 -9 -------- Run | Jun Mat Mat Sto Total Allies . | . . . . Largest Group . | . . . . Highest-Rated Group . | . . . . Highest-Rated Ally . | . . . . Total Orders . | . . . . Ally Attacks . | . . . . Total Damage . | . . . . Kills . | . . . . Allies Corrupted . | . . . . Allies Melted . | . . . . Intel | -11 -10 -9 -9 ------- Run | Jun Mat Mat Sto Robot Analysis Total . | . . . . Derelict Logs Recovered . | . . . . Drone Launches . | . . . . Drone Recoveries . | . . . . Exploration | -11 -10 -9 -9 ------------- Run | Jun Mat Mat Sto Turns Passed 768 | 162 315 105 186 Spaces Moved 592 | 107 243 74 168 Core 100 | 22 . . 78 Treads . | . . . . Legs 441 | 85 243 74 39 Wheels . | . . . . Hover . | . . . . Flight 51 | . . . 51 Fastest Speed 35 | 50 120 120 35 Average Speed 101 | 105 120 120 62 Slowest Speed 120 | 120 120 120 120 Overloaded Moves . | . . . . Propulsion Burnouts . | . . . . Robots Hopped . | . . . . Cave-ins Triggered . | . . . . Exploration Rate (%) 23 | 7 39 16 30 Regions Visited 3 Branch Regions 1 Pre-discovered Areas . | . . . . Known Exits Taken 3 | 1 1 1 . Unknown Exits Taken . | . . . . Scrap Searched . | . . . . Spaces Dug . | . . . . Terrain Destroyed 72 | . . . 72 Melee . | . . . . Projectile . | . . . . AOE 72 | . . . 72 Terrain Rammed . | . . . . Walls Destroyed . | . . . . Machines Disabled . | . . . . Actions | -11 -10 -9 -9 --------- Run | Jun Mat Mat Sto Total 710 | 153 257 82 218 Wait 40 | 31 6 . 3 Move 589 | 106 242 73 168 Hop . | . . . . Pick Up 14 | 7 . 1 6 Fast Attach . | . . . . Attach 12 | 7 . 1 4 Detach . | . . . . Swap 1 | . . . 1 Drop 1 | . . . 1 Fire 34 | 2 4 6 22 Melee . | . . . . Ram 13 | . . . 13 Kick 6 | . 5 1 . Crush . | . . . . Escape Stasis . | . . . . Rewire . | . . . . Trap . | . . . . Miscellaneous . | . . . . Route ------- -11/Junkyard -10/Materials -9/Materials -9/Storage History --------- Turn | Location | Event 21 | -11/Junkyard | Identified exit to Materials 21 | -11/Junkyard | Discovered exit to Materials (range 16) 163 | -11/Junkyard | Entered Materials 163 | -10/Materials | Evolved 1 slot: Propulsion x1 316 | -10/Materials | Build established: Hacker-Mutant 467 | -10/Materials | Identified exit to Materials 467 | -10/Materials | Discovered exit to Materials (range 9) 478 | -10/Materials | Entered another Materials area 478 | -9/Materials | Evolved 2 slots: Propulsion x2 569 | -9/Materials | Identified exit to Storage 569 | -9/Materials | Discovered exit to Storage (range 9) 583 | -9/Materials | Entered Storage 605 | -9/Storage | Lost 3 parts (1p2w) 713 | -9/Storage | Core integrity fell below 50% 714 | -9/Storage | Lost 6 parts (4n1u1w) 758 | -9/Storage | Core integrity fell below 20% 769 | -9/Storage | Destroyed by Y-45 Defender with Beam Rifle Last Messages --------------- Y-45 Defender suffers critical hit (Burn). K-01 Serf collects debris. R-06 Scavenger collects Sml. Laser. Y-45 Defender suffers critical hit (Burn). Imp. Ion Engine melted. Lgt. Armor Plating melted. Lgt. Treads melted. Heat Sink melted. Y-45 Defender destroyed. Switching to secondary target: Y-45 Defender. K-01 Serf destroyed. R-06 Scavenger collects Sml. Laser. G-34 Mercenary destroyed. Imp. Medium Laser destroyed. G-34 Mercenary destroyed. Y-45 Defender destroyed. Imp. Assault Rifle destroyed. Acquired Imp. Medium Laser. System corrupted: Matter fused (-9). [Achievement: First Step to Greatness] Map ----- +----------------------------------------------------+ | ???????????????????????# ! # | | ???????????????????????# # # | | ???????????????????????# # # # | | ???????????????????????# " # # | | ???????????????????# T###"R" # # | | ???????????????????##+##??#""" #% # | | ??????????????????????????### # | | ????????????????????????????### # ## | | ??????????????????????????????##### ## # ##? | | ??????????????????????? ????????# ##### ?? | | ??????????????????????? ????????# # ? | | ??????????????????????# ????????# # """ # | | ??????????????????????# #???????# # """ # | | ??????????????????????# #???????# # """ ? | | ??????????????????????+ #???????# # ? | | ??????????????????????# #???????# # """ # | | ??????????????????????# #???????# + """ # | | ??????????????????????# #???????# # """ # | | ??????????????????????# #??##"### # # | | ??????????????????????# #??#T + + """ # | | ??????????????????????#% #??## # # """ # | | ??????????????????????# % #???###### ## """ # | | ??????????????????????#%=%#????????# ## # | | ??????????????????????#=%=#????????# ######### | | ??????????????????????#%!!#????????# #???????? | | ??????????????????????#*!@########## #???????? | | ??????????????????????#%=%Y%%[% %% %%#???????? | | ??????????????????????#==Y##########%#???????? | | ??????????????????? !%!Y%#????????# #???????? | | ??????????????????######/##????????# #???????? | | ???????????????????????*!=???????###+####????? | | ?????????????????????? ???????# #????? | | ????????????????????? ???????# #????? | | ???????????????????? """ "???????# #????? | | ???????????????????# """ "???????# #????? | | ???????????????????# """ "???????# #????? | | ???????????????????#??? ???????# #????? | | ??????????????????????? ???????########????? | | ???????????????????????##????????????????????? | | ?????????????????????????????????????????????? | | ?????????????????????????????????????????????? | | ?????????????????????????????????????????????? | | ?????????????????????????????????????????????? | | ?????????????????????????????????????????????? | | ?????????????????????????????????????????????? | | ?????????????????????????????????????????????? | | ?????????????????????????????????????????????? | | ?????????????????????????????????????????????? | | ?????????????????????????????????????????????? | | ?????????????????????????????????????????????? | +----------------------------------------------------+ Best States ------------- Heat Dissipation 28 Energy Generation 10 Energy Capacity 125 Matter Stores 300 Matter Capacity 300 Sight Range 16 Terrain Scan Density 10 Resistance: KI 35 Resistance: TH 35 Resistance: EX 35 Resistance: EM 35 Resistance: I 35 Resistance: S 35 Resistance: P 35 Weapon Shielding 33 Evasion (%) 63 Targeting Accuracy 6 Offensive Hacking 20 Item Schematics ----------------- None Robot Schematics ------------------ None Fabricated ------------ Nothing Alien Tech Used ----------------- None Achievements -------------- Crack Shot First Step to Greatness Loot Pinata One Hack Too Far Risk Taker Uninvited Guest Use The Force Challenges ------------ None Game ------ Seed MatterThermoelectricShield Manual? 0 Play Time 00:49:29 Cumulative 1.6 hours Start 2024.01.18 @ 17:44:39 End 2024.01.18 @ 19:18:04 Sessions 1 Manual Loads 0 Difficulty Explorer Special Mode None Game No. 2 Rogue 1 Adventurer 0 Explorer 1 Win Type - Total 0 Types 0/0/0/0/0/0/0/0/0 Lore% 0 Gallery% 1 Achievement% 2 Wizard Run 0 Options --------- ASCII 0 Keyboard 0 Movement Mouse Keybinds 0 Fullscreen 2 Font 18/Smallcaps Map View 76x50 Tactical HUD 0 Map Filters NONE Filters NONE Steam 1 RUN: d1859a49-648f-44e1-988b-52bc9a8438be